[Event "Betsys MČR v online bleskovém šachu 2021"]
[Site "Chess.com"]
[Date "2021.04.17"]
[Round "9"]
[White "machajda"]
[Black "martin1804"]
[Result "0-1"]
[WhiteElo "2044"]
[BlackElo "2284"]
[TimeControl "180+1"]
[EndTime "10:28:45 PDT"]
[Termination "Uživatel martin1804 zvítězil po vzdání soupeře"]

1. e4 {[%clk 0:03:00.9]} 1... d6 {[%clk 0:02:59.3]} 2. d4 {[%clk 0:03:00.1]}
2... Nf6 {[%clk 0:02:58.7]} 3. Nc3 {[%clk 0:02:59.4]} 3... e5 {[%clk 0:02:58.8]}
4. Be3 {[%clk 0:02:58.9]} 4... Ng4 {[%clk 0:02:50.5]} 5. Bc1 {[%clk 0:02:55.5]}
5... Be7 {[%clk 0:02:42.1]} 6. h3 {[%clk 0:02:52.9]} 6... exd4 {[%clk
0:02:34.4]} 7. Qxd4 {[%clk 0:02:48.8]} 7... Nc6 {[%clk 0:02:11.6]} 8. Bb5 {[%clk
0:02:46.8]} 8... Bf6 {[%clk 0:02:10.1]} 9. Bxc6+ {[%clk 0:02:42.9]} 9... bxc6
{[%clk 0:02:08.6]} 10. Qd3 {[%clk 0:02:08.5]} 10... Ne5 {[%clk 0:02:06.4]} 11.
Qg3 {[%clk 0:02:08.6]} 11... Ba6 {[%clk 0:01:54.1]} 12. Nge2 {[%clk 0:02:00.9]}
12... h5 {[%clk 0:01:44.2]} 13. O-O {[%clk 0:01:44.6]} 13... h4 {[%clk
0:01:41.6]} 14. Qh2 {[%clk 0:01:44.1]} 14... Ng6 {[%clk 0:01:27.3]} 15. Kh1
{[%clk 0:01:37.9]} 15... Bxc3 {[%clk 0:01:25.3]} 16. bxc3 {[%clk 0:01:23.2]}
16... Bxe2 {[%clk 0:01:24.9]} 17. Re1 {[%clk 0:01:23.5]} 17... Bc4 {[%clk
0:01:23.4]} 18. f4 {[%clk 0:01:23.1]} 18... O-O {[%clk 0:01:19]} 19. f5 {[%clk
0:01:22.5]} 19... Ne5 {[%clk 0:01:15.5]} 20. Bf4 {[%clk 0:01:19.4]} 20... Qf6
{[%clk 0:01:12.5]} 21. Rad1 {[%clk 0:01:13.6]} 21... Rab8 {[%clk 0:01:00.4]} 22.
Rd4 {[%clk 0:01:12.4]} 22... Bxa2 {[%clk 0:00:55.3]} 23. Ra4 {[%clk 0:01:10]}
23... Rb2 {[%clk 0:00:51.1]} 24. Ra1 {[%clk 0:01:03.6]} 24... Rb1+ {[%clk
0:00:51]} 25. Bc1 {[%clk 0:00:57.5]} 25... Rxa1 {[%clk 0:00:47.9]} 0-1

[Event "Betsys MČR v online bleskovém šachu 2021"]
[Site "Chess.com"]
[Date "2021.04.17"]
[Round "9"]
[White "matyson523"]
[Black "Tretrik"]
[Result "0-1"]
[WhiteElo "1805"]
[BlackElo "2072"]
[TimeControl "180+1"]
[EndTime "10:28:49 PDT"]
[Termination "Uživatel Tretrik zvítězil matem"]

1. e4 {[%clk 0:03:00.9]} 1... c5 {[%clk 0:02:59.4]} 2. Nf3 {[%clk 0:03:00]} 2...
Nc6 {[%clk 0:02:59.8]} 3. Bb5 {[%clk 0:02:59]} 3... Qb6 {[%clk 0:02:58.6]} 4.
Nc3 {[%clk 0:02:57.8]} 4... e6 {[%clk 0:02:58.3]} 5. O-O {[%clk 0:02:53.9]} 5...
Nge7 {[%clk 0:02:57.9]} 6. d3 {[%clk 0:02:51.5]} 6... g6 {[%clk 0:02:57.3]} 7.
Be3 {[%clk 0:02:50.4]} 7... Bg7 {[%clk 0:02:56.2]} 8. Qd2 {[%clk 0:02:47.7]}
8... Nd4 {[%clk 0:02:54.7]} 9. a4 {[%clk 0:02:27.5]} 9... Nxf3+ {[%clk
0:02:20.1]} 10. gxf3 {[%clk 0:02:28.4]} 10... O-O {[%clk 0:02:16]} 11. a5 {[%clk
0:02:22.8]} 11... Qc7 {[%clk 0:02:15.5]} 12. Bf4 {[%clk 0:02:21]} 12... d6
{[%clk 0:02:08.4]} 13. Rfe1 {[%clk 0:02:18.7]} 13... Bd7 {[%clk 0:02:03.1]} 14.
Bxd7 {[%clk 0:02:16.6]} 14... Qxd7 {[%clk 0:02:03.2]} 15. Kh1 {[%clk 0:02:03.8]}
15... Nc6 {[%clk 0:02:02.3]} 16. Nb5 {[%clk 0:02:01.4]} 16... e5 {[%clk
0:01:55.2]} 17. Bh6 {[%clk 0:01:50.5]} 17... f5 {[%clk 0:01:54.7]} 18. Bxg7
{[%clk 0:01:44.9]} 18... Kxg7 {[%clk 0:01:54.3]} 19. Nc3 {[%clk 0:01:44.9]}
19... fxe4 {[%clk 0:01:52.7]} 20. fxe4 {[%clk 0:01:44.8]} 20... Nd4 {[%clk
0:01:51]} 21. Re3 {[%clk 0:01:34.4]} 21... Rf7 {[%clk 0:01:43.1]} 22. Nd5 {[%clk
0:01:24.8]} 22... Raf8 {[%clk 0:01:43.2]} 23. Rf1 {[%clk 0:01:21.9]} 23... Nf3
{[%clk 0:01:40]} 24. Qe2 {[%clk 0:01:17]} 24... Qh3 {[%clk 0:01:38.8]} 25. Rxf3
{[%clk 0:01:13.6]} 25... Rxf3 {[%clk 0:01:39.1]} 26. Kg1 {[%clk 0:00:54.4]}
26... Qg4+ {[%clk 0:01:29.2]} 27. Kh1 {[%clk 0:00:54]} 27... Qh4 {[%clk
0:01:28.9]} 28. d4 {[%clk 0:00:45.8]} 28... Rxf2 {[%clk 0:01:24]} 29. Rxf2
{[%clk 0:00:37]} 29... Rxf2 {[%clk 0:01:24.9]} 30. Qxf2 {[%clk 0:00:33.4]} 30...
Qxf2 {[%clk 0:01:23.8]} 31. dxe5 {[%clk 0:00:32.3]} 31... Qf1# {[%clk
0:01:23.2]} 0-1

[Event "Betsys MČR v online bleskovém šachu 2021"]
[Site "Chess.com"]
[Date "2021.04.17"]
[Round "9"]
[White "MiroslavBucek"]
[Black "polik1112"]
[Result "1-0"]
[WhiteElo "1606"]
[BlackElo "1317"]
[TimeControl "180+1"]
[EndTime "10:28:50 PDT"]
[Termination "Uživatel MiroslavBucek zvítězil matem"]

1. e4 {[%clk 0:03:00.9]} 1... e6 {[%clk 0:02:59]} 2. d4 {[%clk 0:02:59.8]} 2...
d5 {[%clk 0:02:58.5]} 3. Nc3 {[%clk 0:02:59.1]} 3... Nf6 {[%clk 0:02:56.3]} 4.
Bg5 {[%clk 0:02:57.7]} 4... Be7 {[%clk 0:02:52.6]} 5. e5 {[%clk 0:02:57.1]} 5...
Nfd7 {[%clk 0:02:52.4]} 6. Bxe7 {[%clk 0:02:57.2]} 6... Qxe7 {[%clk 0:02:53.3]}
7. f4 {[%clk 0:02:57]} 7... c5 {[%clk 0:02:52.6]} 8. Nb5 {[%clk 0:02:56.6]} 8...
Nb6 {[%clk 0:02:34.9]} 9. Nd6+ {[%clk 0:02:53.4]} 9... Kd7 {[%clk 0:02:33.9]}
10. dxc5 {[%clk 0:02:50.5]} 10... Na4 {[%clk 0:02:09.9]} 11. Bb5+ {[%clk
0:02:49.7]} 11... Nc6 {[%clk 0:02:07.1]} 12. Bxa4 {[%clk 0:02:49.8]} 12... a6
{[%clk 0:02:05.6]} 13. Bxc6+ {[%clk 0:02:45.6]} 13... Kxc6 {[%clk 0:02:04.8]}
14. Qd3 {[%clk 0:02:43.9]} 14... Bd7 {[%clk 0:01:55.5]} 15. O-O-O {[%clk
0:02:41.1]} 15... Rab8 {[%clk 0:01:40.8]} 16. Nf3 {[%clk 0:02:38.8]} 16... Kxc5
{[%clk 0:01:40]} 17. Qd4+ {[%clk 0:02:37.8]} 17... Kc6 {[%clk 0:01:38.2]} 18.
Qc3+ {[%clk 0:02:35.8]} 18... Kb6 {[%clk 0:01:35.8]} 19. Nd4 {[%clk 0:02:31.3]}
19... Ka7 {[%clk 0:01:32]} 20. Qb4 {[%clk 0:02:28.2]} 20... Qf8 {[%clk 0:01:24]}
21. Rd3 {[%clk 0:02:18.7]} 21... f6 {[%clk 0:01:22.9]} 22. Rb3 {[%clk
0:02:02.5]} 22... fxe5 {[%clk 0:01:07.2]} 23. fxe5 {[%clk 0:02:01.6]} 23... Qf4+
{[%clk 0:00:34.6]} 24. Kb1 {[%clk 0:02:00.7]} 24... Qxe5 {[%clk 0:00:33.3]} 25.
Qb6+ {[%clk 0:01:55.6]} 25... Ka8 {[%clk 0:00:29.5]} 26. Nxb7 {[%clk 0:01:51.9]}
26... Bb5 {[%clk 0:00:02.5]} 27. Nxb5 {[%clk 0:01:45.6]} 27... axb5 {[%clk
0:00:01.5]} 28. Qa6# {[%clk 0:01:44.4]} 1-0

[Event "Betsys MČR v online bleskovém šachu 2021"]
[Site "Chess.com"]
[Date "2021.04.17"]
[Round "9"]
[White "TTCZ"]
[Black "Maximon2012"]
[Result "1-0"]
[WhiteElo "1455"]
[BlackElo "1070"]
[TimeControl "180+1"]
[EndTime "10:28:51 PDT"]
[Termination "Uživatel TTCZ zvítězil matem"]

1. e4 {[%clk 0:03:00.9]} 1... e5 {[%clk 0:02:57.5]} 2. Nc3 {[%clk 0:03:00.7]}
2... Bc5 {[%clk 0:02:53.3]} 3. f4 {[%clk 0:03:00.4]} 3... d6 {[%clk 0:02:52.4]}
4. Nf3 {[%clk 0:02:59.8]} 4... Bg4 {[%clk 0:02:50.8]} 5. Be2 {[%clk 0:02:58.8]}
5... Nc6 {[%clk 0:02:47.7]} 6. Na4 {[%clk 0:02:49.9]} 6... Nge7 {[%clk
0:02:43.4]} 7. Nxc5 {[%clk 0:02:48.3]} 7... dxc5 {[%clk 0:02:42.2]} 8. O-O
{[%clk 0:02:46.5]} 8... O-O {[%clk 0:02:37]} 9. fxe5 {[%clk 0:02:44.3]} 9...
Bxf3 {[%clk 0:02:34.7]} 10. Bxf3 {[%clk 0:02:40.7]} 10... Nxe5 {[%clk
0:02:34.3]} 11. d3 {[%clk 0:02:40.2]} 11... N7g6 {[%clk 0:02:25.3]} 12. Be3
{[%clk 0:02:37.5]} 12... b6 {[%clk 0:02:22.2]} 13. Be2 {[%clk 0:02:30.2]} 13...
Qh4 {[%clk 0:02:14]} 14. Rf5 {[%clk 0:02:25]} 14... Rae8 {[%clk 0:02:00.1]} 15.
Bg5 {[%clk 0:02:24.5]} 15... Qxg5 {[%clk 0:01:30.5]} 16. Rxg5 {[%clk 0:02:25.4]}
16... h6 {[%clk 0:01:25.9]} 17. Rg3 {[%clk 0:02:22.9]} 17... f6 {[%clk 0:01:16]}
18. Bh5 {[%clk 0:02:16]} 18... Kh7 {[%clk 0:01:13.5]} 19. Bxg6+ {[%clk
0:02:15.4]} 19... Nxg6 {[%clk 0:01:12.1]} 20. Qg4 {[%clk 0:02:14.1]} 20... Rf7
{[%clk 0:00:59.7]} 21. Qf5 {[%clk 0:02:09.1]} 21... Kg8 {[%clk 0:00:41.8]} 22.
Qxg6 {[%clk 0:02:06.4]} 22... Ree7 {[%clk 0:00:37.3]} 23. Qxh6 {[%clk
0:02:05.8]} 23... g6 {[%clk 0:00:34.6]} 24. Rxg6+ {[%clk 0:02:03.6]} 24... Rg7
{[%clk 0:00:33.8]} 25. Rxg7+ {[%clk 0:02:02.2]} 25... Rxg7 {[%clk 0:00:33.1]}
26. Qxf6 {[%clk 0:02:01.9]} 26... Rh7 {[%clk 0:00:27.8]} 27. Rf1 {[%clk
0:01:58.2]} 27... Rg7 {[%clk 0:00:19]} 28. Rf3 {[%clk 0:01:53]} 28... Kh8 {[%clk
0:00:17.3]} 29. Rh3+ {[%clk 0:01:51.4]} 29... Kg8 {[%clk 0:00:16.9]} 30. Qd8+
{[%clk 0:01:47.4]} 30... Kf7 {[%clk 0:00:16]} 31. Qxc7+ {[%clk 0:01:47.2]} 31...
Ke8 {[%clk 0:00:13.3]} 32. Rh8+ {[%clk 0:01:44.6]} 32... Rg8 {[%clk 0:00:11.7]}
33. Rxg8# {[%clk 0:01:44.2]} 1-0

[Event "Betsys MČR v online bleskovém šachu 2021"]
[Site "Chess.com"]
[Date "2021.04.17"]
[Round "9"]
[White "starypomalymuz"]
[Black "jachymcarostrelec4"]
[Result "0-1"]
[WhiteElo "1758"]
[BlackElo "1971"]
[TimeControl "180+1"]
[EndTime "10:28:53 PDT"]
[Termination "Uživatel jachymcarostrelec4 zvítězil po vzdání soupeře"]

1. e4 {[%clk 0:03:00.9]} 1... c5 {[%clk 0:02:58.6]} 2. Nf3 {[%clk 0:02:59.8]}
2... e6 {[%clk 0:02:58.5]} 3. Be2 {[%clk 0:02:58]} 3... Nc6 {[%clk 0:02:54.3]}
4. d4 {[%clk 0:02:55.5]} 4... cxd4 {[%clk 0:02:53.3]} 5. Nxd4 {[%clk 0:02:55.4]}
5... Qb6 {[%clk 0:02:51.5]} 6. Nb3 {[%clk 0:02:50.2]} 6... Nf6 {[%clk
0:02:47.1]} 7. Nc3 {[%clk 0:02:47.3]} 7... Bb4 {[%clk 0:02:45.5]} 8. Be3 {[%clk
0:02:31.6]} 8... Qc7 {[%clk 0:02:40.7]} 9. Bf3 {[%clk 0:02:21]} 9... Ne5 {[%clk
0:02:37.1]} 10. O-O {[%clk 0:02:16.6]} 10... Bxc3 {[%clk 0:02:35.3]} 11. bxc3
{[%clk 0:02:14.5]} 11... b6 {[%clk 0:02:31.8]} 12. Bd4 {[%clk 0:02:08.9]} 12...
d6 {[%clk 0:02:31.1]} 13. Qe2 {[%clk 0:01:56]} 13... O-O {[%clk 0:02:22.4]} 14.
Rfd1 {[%clk 0:01:55.6]} 14... a5 {[%clk 0:02:20.1]} 15. Bxe5 {[%clk 0:01:54.1]}
15... dxe5 {[%clk 0:02:21]} 16. c4 {[%clk 0:01:48.3]} 16... Ba6 {[%clk
0:02:20.2]} 17. Nd2 {[%clk 0:01:41.3]} 17... Rfc8 {[%clk 0:02:17.3]} 18. Rab1
{[%clk 0:01:36.6]} 18... Rab8 {[%clk 0:02:15.6]} 19. Qe3 {[%clk 0:01:20.8]}
19... h6 {[%clk 0:02:06.3]} 20. c5 {[%clk 0:01:14.8]} 20... bxc5 {[%clk
0:02:03.2]} 21. Nb3 {[%clk 0:01:06.7]} 21... Rb4 {[%clk 0:01:55.7]} 22. a3
{[%clk 0:01:01.7]} 22... Ra4 {[%clk 0:01:53.1]} 23. Nd2 {[%clk 0:00:56.8]} 23...
Rd4 {[%clk 0:01:47.3]} 24. Nb3 {[%clk 0:00:53.3]} 24... Rxd1+ {[%clk 0:01:44.4]}
25. Rxd1 {[%clk 0:00:53.5]} 25... c4 {[%clk 0:01:44.2]} 26. Nd2 {[%clk
0:00:51.2]} 26... Qc5 {[%clk 0:01:43.5]} 27. Qxc5 {[%clk 0:00:47]} 27... Rxc5
{[%clk 0:01:44.4]} 28. c3 {[%clk 0:00:44.1]} 28... Rc8 {[%clk 0:01:40.1]} 29.
Rb1 {[%clk 0:00:43.6]} 29... Rd8 {[%clk 0:01:36.5]} 30. Rb2 {[%clk 0:00:37.2]}
30... Kf8 {[%clk 0:01:32.6]} 31. Kf1 {[%clk 0:00:37.4]} 31... Ke7 {[%clk
0:01:31.8]} 32. Ke2 {[%clk 0:00:37.2]} 32... Rd6 {[%clk 0:01:30.2]} 33. Rb8
{[%clk 0:00:35.2]} 33... Nd7 {[%clk 0:01:29.7]} 34. Rc8 {[%clk 0:00:34.7]} 34...
Bxc8 {[%clk 0:01:27]} 0-1

[Event "Betsys MČR v online bleskovém šachu 2021"]
[Site "Chess.com"]
[Date "2021.04.17"]
[Round "9"]
[White "Trener-Pokrocili"]
[Black "Saygram"]
[Result "1-0"]
[WhiteElo "2262"]
[BlackElo "2399"]
[TimeControl "180+1"]
[EndTime "10:28:54 PDT"]
[Termination "Uživatel Trener-Pokrocili zvítězil po vzdání soupeře"]

1. Nf3 {[%clk 0:03:00.9]} 1... Nf6 {[%clk 0:02:59.5]} 2. c4 {[%clk 0:02:59.5]}
2... e6 {[%clk 0:02:59.3]} 3. Nc3 {[%clk 0:02:59]} 3... d5 {[%clk 0:02:59.8]} 4.
d4 {[%clk 0:02:58.6]} 4... Be7 {[%clk 0:03:00.2]} 5. Bf4 {[%clk 0:02:57.8]} 5...
O-O {[%clk 0:02:59.9]} 6. e3 {[%clk 0:02:58]} 6... b6 {[%clk 0:02:59.7]} 7. cxd5
{[%clk 0:02:58]} 7... Nxd5 {[%clk 0:03:00]} 8. Nxd5 {[%clk 0:02:57.6]} 8... exd5
{[%clk 0:03:00.9]} 9. Bd3 {[%clk 0:02:50.4]} 9... c5 {[%clk 0:03:00.9]} 10. Ne5
{[%clk 0:02:41.2]} 10... c4 {[%clk 0:02:58.7]} 11. Bc2 {[%clk 0:02:35.9]} 11...
f5 {[%clk 0:02:48.9]} 12. h3 {[%clk 0:02:18.9]} 12... Bb4+ {[%clk 0:02:34.9]}
13. Kf1 {[%clk 0:02:18.1]} 13... Be6 {[%clk 0:02:35]} 14. g4 {[%clk 0:02:14.3]}
14... Qf6 {[%clk 0:01:59.3]} 15. Rg1 {[%clk 0:01:59.6]} 15... fxg4 {[%clk
0:01:56]} 16. Nxg4 {[%clk 0:01:54.7]} 16... Bxg4 {[%clk 0:01:52.3]} 17. Qxg4
{[%clk 0:01:49.8]} 17... Nc6 {[%clk 0:01:48.6]} 18. Qh5 {[%clk 0:01:22.1]} 18...
h6 {[%clk 0:01:01.2]} 19. Qxd5+ {[%clk 0:01:21.1]} 19... Kh8 {[%clk 0:00:59.8]}
20. Qe4 {[%clk 0:01:13.5]} 20... Kg8 {[%clk 0:00:25.1]} 21. Qh7+ {[%clk
0:01:12.1]} 21... Kf7 {[%clk 0:00:25.2]} 22. Rg6 {[%clk 0:01:06.3]} 1-0

[Event "Betsys MČR v online bleskovém šachu 2021"]
[Site "Chess.com"]
[Date "2021.04.17"]
[Round "9"]
[White "Honzik1950"]
[Black "mayerrs"]
[Result "1/2-1/2"]
[WhiteElo "1512"]
[BlackElo "1845"]
[TimeControl "180+1"]
[EndTime "10:28:54 PDT"]
[Termination "Remíza opakováním pozice"]

1. e4 {[%clk 0:03:00.9]} 1... g6 {[%clk 0:03:00.2]} 2. d4 {[%clk 0:03:00.4]}
2... Bg7 {[%clk 0:02:53.9]} 3. Nf3 {[%clk 0:02:59.3]} 3... b6 {[%clk 0:02:53.7]}
4. Nc3 {[%clk 0:02:57.1]} 4... Bb7 {[%clk 0:02:54.3]} 5. Be3 {[%clk 0:02:55.8]}
5... d6 {[%clk 0:02:53.6]} 6. Bd3 {[%clk 0:02:55.2]} 6... Nd7 {[%clk 0:02:53.1]}
7. O-O {[%clk 0:02:53.8]} 7... Ngf6 {[%clk 0:02:53.2]} 8. Qd2 {[%clk 0:02:37.9]}
8... O-O {[%clk 0:02:47]} 9. Bh6 {[%clk 0:02:37]} 9... Ng4 {[%clk 0:02:38.1]}
10. Bxg7 {[%clk 0:02:35.3]} 10... Kxg7 {[%clk 0:02:39]} 11. h3 {[%clk 0:02:32]}
11... Ngf6 {[%clk 0:02:38.6]} 12. Rfe1 {[%clk 0:02:13.8]} 12... e5 {[%clk
0:02:33.1]} 13. dxe5 {[%clk 0:02:12.1]} 13... Nxe5 {[%clk 0:02:33.6]} 14. Nxe5
{[%clk 0:02:12.2]} 14... dxe5 {[%clk 0:02:34.5]} 15. Qg5 {[%clk 0:02:03.6]}
15... h6 {[%clk 0:02:30.1]} 16. Qxe5 {[%clk 0:01:56.5]} 16... Re8 {[%clk
0:02:28.4]} 17. Qf4 {[%clk 0:01:47]} 17... Qd4 {[%clk 0:02:20.7]} 18. Qe3 {[%clk
0:01:40.7]} 18... Qb4 {[%clk 0:02:09.5]} 19. Rab1 {[%clk 0:01:22.1]} 19... Rad8
{[%clk 0:02:05.6]} 20. f3 {[%clk 0:01:17.9]} 20... a5 {[%clk 0:01:33.1]} 21. a3
{[%clk 0:01:17.5]} 21... Qe7 {[%clk 0:01:31.8]} 22. Kf2 {[%clk 0:01:14]} 22...
Nd5 {[%clk 0:01:31.6]} 23. Nxd5 {[%clk 0:01:11.1]} 23... Bxd5 {[%clk 0:01:28.9]}
24. exd5 {[%clk 0:01:05.5]} 24... Qh4+ {[%clk 0:01:28.8]} 25. g3 {[%clk
0:01:02.9]} 25... Qxh3 {[%clk 0:01:27.7]} 26. Qf4 {[%clk 0:00:56]} 26... Qh2+
{[%clk 0:01:21.2]} 27. Kf1 {[%clk 0:00:53.9]} 27... Qh1+ {[%clk 0:01:03.9]} 28.
Kf2 {[%clk 0:00:54.1]} 28... Qh2+ {[%clk 0:00:55.9]} 29. Kf1 {[%clk 0:00:54.1]}
29... Qh1+ {[%clk 0:00:50.6]} 30. Kf2 {[%clk 0:00:54.4]} 30... Qh2+ {[%clk
0:00:51.5]} 1/2-1/2

[Event "Betsys MČR v online bleskovém šachu 2021"]
[Site "Chess.com"]
[Date "2021.04.17"]
[Round "9"]
[White "Krejcak"]
[Black "marecek1754"]
[Result "0-1"]
[WhiteElo "2008"]
[BlackElo "2180"]
[TimeControl "180+1"]
[EndTime "10:28:55 PDT"]
[Termination "Uživatel marecek1754 zvítězil po vzdání soupeře"]

1. e4 {[%clk 0:03:00.9]} 1... e5 {[%clk 0:02:57.6]} 2. Nf3 {[%clk 0:03:00.8]}
2... Nc6 {[%clk 0:02:57.3]} 3. Bc4 {[%clk 0:03:00.6]} 3... Bc5 {[%clk
0:02:56.7]} 4. c3 {[%clk 0:03:00.1]} 4... Nf6 {[%clk 0:02:56.5]} 5. d4 {[%clk
0:02:59.2]} 5... exd4 {[%clk 0:02:56.8]} 6. b4 {[%clk 0:02:54.9]} 6... Bb6
{[%clk 0:02:47.5]} 7. e5 {[%clk 0:02:55]} 7... d5 {[%clk 0:02:45]} 8. exf6
{[%clk 0:02:45.6]} 8... dxc4 {[%clk 0:02:45.1]} 9. fxg7 {[%clk 0:02:42.7]} 9...
Rg8 {[%clk 0:02:44.9]} 10. Qe2+ {[%clk 0:02:28]} 10... Be6 {[%clk 0:02:44.2]}
11. Bg5 {[%clk 0:02:27]} 11... Qd5 {[%clk 0:02:36.4]} 12. Bf6 {[%clk 0:02:18.8]}
12... d3 {[%clk 0:02:33.5]} 13. Qd1 {[%clk 0:02:03.5]} 13... Qf5 {[%clk
0:02:24.7]} 14. b5 {[%clk 0:01:53.9]} 14... Qxb5 {[%clk 0:02:05.2]} 15. O-O
{[%clk 0:01:44.8]} 15... Qf5 {[%clk 0:02:04.3]} 16. Bd4 {[%clk 0:01:39.6]} 16...
Bxd4 {[%clk 0:01:56.3]} 17. cxd4 {[%clk 0:01:37.4]} 17... Rxg7 {[%clk
0:01:55.7]} 18. Nbd2 {[%clk 0:01:30.8]} 18... O-O-O {[%clk 0:01:47.5]} 19. Qa4
{[%clk 0:01:20]} 19... Rxg2+ {[%clk 0:01:36.3]} 20. Kxg2 {[%clk 0:01:15.1]}
20... Rg8+ {[%clk 0:01:36.1]} 21. Kh1 {[%clk 0:01:14.9]} 21... Bd5 {[%clk
0:01:36.1]} 22. Qd1 {[%clk 0:01:11.3]} 22... Nxd4 {[%clk 0:01:35.1]} 23. Rg1
{[%clk 0:00:59.3]} 23... Rxg1+ {[%clk 0:01:17.3]} 24. Qxg1 {[%clk 0:00:57.1]}
24... Bxf3+ {[%clk 0:01:14.2]} 25. Nxf3 {[%clk 0:00:55.6]} 25... Qxf3+ {[%clk
0:01:14.6]} 26. Qg2 {[%clk 0:00:55.4]} 26... c3 {[%clk 0:01:15.1]} 27. Kg1
{[%clk 0:00:43.5]} 27... Ne2+ {[%clk 0:01:14.2]} 28. Kf1 {[%clk 0:00:42.5]}
28... Qxg2+ {[%clk 0:01:15.1]} 29. Kxg2 {[%clk 0:00:42.2]} 29... c2 {[%clk
0:01:16]} 30. Kf3 {[%clk 0:00:40.7]} 30... d2 {[%clk 0:01:13.3]} 31. Kxe2 {[%clk
0:00:39.6]} 31... c1=Q {[%clk 0:01:12.9]} 0-1

[Event "Betsys MČR v online bleskovém šachu 2021"]
[Site "Chess.com"]
[Date "2021.04.17"]
[Round "9"]
[White "OndrejBorkovec"]
[Black "VojtaT"]
[Result "0-1"]
[WhiteElo "1506"]
[BlackElo "1736"]
[TimeControl "180+1"]
[EndTime "10:28:57 PDT"]
[Termination "Uživatel VojtaT zvítězil matem"]

1. c4 {[%clk 0:03:00.9]} 1... e5 {[%clk 0:02:58.7]} 2. f4 {[%clk 0:02:57.9]}
2... exf4 {[%clk 0:02:47.2]} 3. Nf3 {[%clk 0:02:56.1]} 3... Nc6 {[%clk
0:02:45.3]} 4. d4 {[%clk 0:02:55.3]} 4... d6 {[%clk 0:02:37.1]} 5. Bxf4 {[%clk
0:02:54.8]} 5... Nf6 {[%clk 0:02:23.8]} 6. e3 {[%clk 0:02:54.2]} 6... Bg4 {[%clk
0:02:17.3]} 7. Bd3 {[%clk 0:02:52.4]} 7... Be7 {[%clk 0:02:11.3]} 8. O-O {[%clk
0:02:51.7]} 8... O-O {[%clk 0:02:09.1]} 9. Nc3 {[%clk 0:02:49.8]} 9... a6 {[%clk
0:02:07.6]} 10. Bc2 {[%clk 0:02:49.5]} 10... d5 {[%clk 0:02:00.4]} 11. cxd5
{[%clk 0:02:47.8]} 11... Nxd5 {[%clk 0:02:00.3]} 12. Nxd5 {[%clk 0:02:47.6]}
12... Qxd5 {[%clk 0:01:58.8]} 13. Qd3 {[%clk 0:02:47.7]} 13... g6 {[%clk
0:01:54.7]} 14. Bh6 {[%clk 0:02:47.6]} 14... Rfe8 {[%clk 0:01:50.3]} 15. Bb3
{[%clk 0:02:47.4]} 15... Qh5 {[%clk 0:01:36.2]} 16. Nd2 {[%clk 0:02:18.4]} 16...
Be6 {[%clk 0:01:31.4]} 17. Bxe6 {[%clk 0:02:16.3]} 17... fxe6 {[%clk 0:01:31.1]}
18. Bf4 {[%clk 0:02:13.4]} 18... Bd6 {[%clk 0:01:28.2]} 19. Bxd6 {[%clk
0:02:10.9]} 19... cxd6 {[%clk 0:01:29.1]} 20. Qc4 {[%clk 0:02:08.9]} 20... d5
{[%clk 0:01:28]} 21. Qd3 {[%clk 0:02:07.8]} 21... Rf8 {[%clk 0:01:26.4]} 22. Nf3
{[%clk 0:02:06.8]} 22... Rac8 {[%clk 0:01:16.9]} 23. Rac1 {[%clk 0:02:06.4]}
23... Qg4 {[%clk 0:01:11.3]} 24. Qb3 {[%clk 0:02:04.8]} 24... b5 {[%clk
0:01:08.9]} 25. Qa3 {[%clk 0:02:03.8]} 25... a5 {[%clk 0:01:01.6]} 26. Qb3
{[%clk 0:02:02.8]} 26... b4 {[%clk 0:00:59.1]} 27. Qa4 {[%clk 0:02:02.9]} 27...
Ne7 {[%clk 0:00:53.1]} 28. Qxa5 {[%clk 0:02:00.3]} 28... Nf5 {[%clk 0:00:51.8]}
29. Ne5 {[%clk 0:01:52.5]} 29... Qg5 {[%clk 0:00:46.9]} 30. Qxb4 {[%clk
0:01:45.6]} 30... Nxe3 {[%clk 0:00:37.8]} 31. Rxf8+ {[%clk 0:01:44.9]} 31...
Rxf8 {[%clk 0:00:35.9]} 32. g3 {[%clk 0:01:44.3]} 32... Ng4 {[%clk 0:00:23.3]}
33. Qd6 {[%clk 0:01:33.4]} 33... Qxc1+ {[%clk 0:00:22.2]} 34. Kg2 {[%clk
0:01:32.6]} 34... Qf1# {[%clk 0:00:21.1]} 0-1

[Event "Betsys MČR v online bleskovém šachu 2021"]
[Site "Chess.com"]
[Date "2021.04.17"]
[Round "9"]
[White "dnovotny"]
[Black "vaclavbelaska"]
[Result "1-0"]
[WhiteElo "1722"]
[BlackElo "1397"]
[TimeControl "180+1"]
[EndTime "10:28:59 PDT"]
[Termination "Uživatel dnovotny zvítězil po vzdání soupeře"]

1. d4 {[%clk 0:02:43.8]} 1... Nf6 {[%clk 0:02:51.4]} 2. Nc3 {[%clk 0:02:44.1]}
2... d5 {[%clk 0:02:40]} 3. Bf4 {[%clk 0:02:42.6]} 3... Bf5 {[%clk 0:02:32.9]}
4. f3 {[%clk 0:02:42]} 4... e6 {[%clk 0:02:24.8]} 5. g4 {[%clk 0:02:41.1]} 5...
Bg6 {[%clk 0:02:20.5]} 6. h4 {[%clk 0:02:41.6]} 6... h6 {[%clk 0:02:10.7]} 7. e3
{[%clk 0:02:41.7]} 7... c5 {[%clk 0:02:02.2]} 8. Nge2 {[%clk 0:02:39]} 8... Nc6
{[%clk 0:01:59.2]} 9. Bg3 {[%clk 0:02:37.5]} 9... cxd4 {[%clk 0:01:56.4]} 10.
exd4 {[%clk 0:02:34.2]} 10... Nb4 {[%clk 0:01:51.5]} 11. Rc1 {[%clk 0:02:23.5]}
11... Bd6 {[%clk 0:01:37.5]} 12. Nf4 {[%clk 0:02:12.8]} 12... Qc7 {[%clk
0:01:18.3]} 13. Qd2 {[%clk 0:01:24.8]} 13... Nxc2+ {[%clk 0:01:00.1]} 14. Kd1
{[%clk 0:01:17.8]} 14... Bxf4 {[%clk 0:00:48]} 15. Bxf4 {[%clk 0:01:15.4]} 15...
Qd7 {[%clk 0:00:41.5]} 16. Bb5 {[%clk 0:01:11.3]} 1-0